bitfinex/quotes_ETHUSD_20250720
["timestamp","ask_amount","ask_price","bid_price","bid_amount"]
[1753012694180,0.072,3750.9,3750.8,3.33582859]
[1753012694558,0.072,3750.9,3750.8,3.36248956]
[1753012695070,0.072,3750.9,3750.8,33.36248956]
[1753012695276,0.5217,3750.9,3750.8,8.66766859]
[1753012695458,0.5217,3750.9,3750.8,9.89974659]
[1753012695659,0.5217,3750.9,3750.8,3.33582859]
[1753012696489,0.5217,3750.9,3750.8,3.20302859]
[1753012698191,0.6545,3750.9,3750.8,3.20302859]
[1753012700217,0.5217,3750.9,3750.8,9.53003659]
[1753012700419,0.5217,3750.9,3750.8,3.20302859]
[1753012700826,0.5217,3750.9,3750.8,5.96584859]
[1753012702426,0.5217,3750.9,3750.8,3.20302859]
[1753012702916,0.072,3750.9,3750.8,24.08914459]
[1753012703124,0.072,3750.9,3750.8,24.22194459]
[1753012703287,0.072,3750.9,3750.8,33.33582859]
[1753012703490,0.072,3750.9,3750.8,29.63228659]
[1753012703691,0.072,3750.9,3750.8,30.18228659]
[1753012703887,0.072,3750.9,3750.8,30.65178659]
[1753012704201,0.072,3750.9,3750.8,32.51312925]
[1753012704402,0.072,3750.9,3750.8,33.73683225]
[1753012704626,0.072,3750.9,3750.8,15.97732225]
[1753012704829,0.072,3750.9,3750.8,7.57759159]
[1753012704992,0.5217,3750.9,3750.8,6.59542259]
[1753012705496,0.072,3750.9,3750.8,27.37363059]
[1753012705713,0.072,3750.9,3750.8,27.64903659]
[1753012706023,0.072,3750.9,3750.8,28.66853659]
[1753012706223,0.072,3750.9,3750.8,29.79413659]
[1753012706444,0.072,3750.9,3750.8,35.95042859]
[1753012707118,0.072,3750.9,3750.8,36.29717535]
[1753012707838,0.072,3750.9,3750.8,36.56341801]
[1753012708611,0.072,3750.9,3750.8,36.12058701]
[1753012709037,0.072,3750.9,3750.8,33.72831401]
[1753012709543,0.072,3750.9,3750.8,36.56341801]
[1753012710632,0.072,3750.9,3750.8,36.29717535]
[1753012711542,0.072,3750.9,3750.8,6.29717535]
[1753012712604,0.072,3750.9,3750.8,36.29717535]
[1753012712843,0.072,3750.9,3750.8,36.56341801]
[1753012713895,0.00522619,3750.9,3750.8,41.18427189]
[1753012714052,0.00522619,3750.9,3750.8,43.98727189]
[1753012714584,0.00522619,3750.9,3750.8,29.99957101]
[1753012714797,0.00522619,3750.9,3750.8,17.28414935]
[1753012715142,0.00522619,3750.9,3750.8,17.83414935]
[1753012715369,0.00522619,3750.9,3750.8,11.53701935]
[1753012715688,0.00522619,3750.9,3750.8,32.14487535]
[1753012715978,0.00522619,3750.9,3750.8,34.69847735]
[1753012716174,0.00522619,3750.9,3750.8,28.69247735]
[1753012716382,0.00522619,3750.9,3750.8,22.98368935]
[1753012716679,0.00522619,3750.9,3750.8,3.18400259]
[1753012717058,0.46082619,3750.9,3750.8,2.50016159]
[1753012717246,2.09492619,3750.9,3750.8,0.20302859]
[1753012717447,2.30441881,3750.9,3750.8,0.20302859]
[1753012720781,2.09492619,3750.9,3750.8,0.20302859]
[1753012722048,2.09492619,3750.9,3750.8,0.001]
[1753012723607,0.46082619,3750.9,3750.4,0.19786404]
[1753012723911,1.5674489,3750.8,3750.0,10.001]
[1753012724110,1.5674489,3750.8,3750.1,3.0]
[1753012724427,0.1328,3750.2,3750.0,10.001]
[1753012724710,0.4556,3750.1,3750.0,13.001]
[1753012724920,0.4556,3750.1,3750.0,3.001]
[1753012725511,0.1328,3750.2,3750.1,3.0]
[1753012725672,0.13802619,3750.9,3750.2,0.55]
[1753012725874,0.13802619,3750.9,3750.3,3.26624266]
[1753012725875,0.00522619,3750.9,3750.3,3.26624266]
[1753012726080,0.4556,3750.8,3750.5,3.0]
[1753012726311,0.4556,3750.7,3750.0,0.20247899]
[1753012726622,0.4556,3750.7,3750.2,3.0]
[1753012726777,0.00522619,3750.9,3750.8,3.0]
[1753012726976,0.00522619,3750.9,3750.8,14.163235]
[1753012727224,0.00522619,3750.9,3750.8,14.665235]
[1753012727396,0.00522619,3750.9,3750.8,5.88382]
[1753012728013,0.00522619,3750.9,3750.8,15.520071]
[1753012728211,0.00522619,3750.9,3750.8,17.720071]
[1753012728902,0.00522619,3750.9,3750.8,33.0]
[1753012729285,0.00522619,3750.9,3750.8,33.001]
[1753012729889,0.00522619,3750.9,3750.8,3.001]
[1753012730080,0.00522619,3750.9,3750.8,3.35817344]
[1753012730409,0.00522619,3750.9,3750.8,3.72770363]
[1753012730605,0.00522619,3750.9,3750.8,5.38620363]
[1753012730793,0.00522619,3750.9,3750.8,35.38620363]
[1753012731111,0.00522619,3750.9,3750.8,35.90954266]
[1753012731414,0.00522619,3750.9,3750.8,36.2667161]
[1753012731711,0.00522619,3750.9,3750.8,8.45857866]
[1753012731897,0.00522619,3750.9,3750.8,7.928559]
[1753012732096,0.00522619,3750.9,3750.8,14.239612]
[1753012732277,0.00522619,3750.9,3750.8,29.983062]
[1753012732477,0.00522619,3750.9,3750.8,33.001]
[1753012732875,0.4556,3755.6,3751.2,2.6658136]
[1753012733078,1.668,3755.9,3754.9,2.088826]
[1753012733079,0.02,3755.9,3754.9,2.088826]
[1753012733314,0.02,3755.9,3755.0,2.088826]
[1753012733548,0.02,3755.9,3754.6,5.088826]
[1753012733678,1.6198,3755.6,3754.7,2.088826]
[1753012733878,1.6198,3755.6,3754.5,2.088826]
[1753012733879,0.6901889,3755.5,3754.5,2.088826]
[1753012734119,0.6901889,3755.5,3754.5,0.20105274]
[1753012734120,0.4556,3755.4,3754.5,0.20105274]
[1753012734301,0.0266489,3755.3,3754.6,2.088826]
[1753012734493,0.4556,3755.4,3753.8,2.088826]
[1753012734675,0.0266489,3755.3,3753.8,2.088826]
[1753012734878,0.0266489,3755.3,3753.8,2.21514315]
[1753012734879,0.4556,3755.2,3753.8,2.21514315]
[1753012735087,0.4556,3755.2,3754.0,3.0]
[1753012735316,1.6464489,3755.1,3754.2,3.0]
[1753012735512,1.6464489,3755.1,3754.0,0.20181135]
[1753012735513,1.6198,3754.9,3754.3,2.088826]
[1753012735700,0.4556,3754.8,3754.1,2.088826]
[1753012735900,0.4556,3754.8,3753.3,5.088826]
[1753012735901,0.1328,3754.0,3753.3,5.088826]
[1753012736103,0.1328,3754.0,3753.5,3.0]
[1753012736301,0.1328,3754.0,3753.7,3.0]
[1753012736479,2.0754,3753.9,3753.8,2.088826]
[1753012736684,0.1328,3753.8,3753.6,2.088826]
[1753012736879,0.1328,3753.8,3753.2,2.088826]
[1753012736880,0.1328,3753.5,3753.2,2.088826]
[1753012737093,0.0266489,3753.4,3753.2,2.088826]
[1753012737279,0.4556,3753.3,3753.2,2.088826]
[1753012737937,2.0754,3753.3,3753.2,2.088826]
[1753012738215,0.1328,3753.2,3753.1,0.02]
[1753012738420,0.5940489,3753.2,3753.1,0.02]
[1753012738717,1.6032,3753.0,3752.1,0.02]
[1753012738902,0.30137379,3752.9,3752.1,0.02]
[1753012739220,0.4346,3752.8,3752.1,0.02]
[1753012739427,0.0266489,3752.7,3752.1,0.02]
[1753012739793,0.4346,3752.6,3752.1,0.02]
[1753012740024,1.6032,3752.4,3752.1,0.02]
[1753012740223,0.69409379,3752.3,3752.1,0.02]
[1753012740525,1.12869379,3752.3,3752.1,0.02]
[1753012740701,0.69409379,3752.3,3752.1,0.02]
[1753012741023,1.10204489,3752.3,3752.1,0.21686778]
[1753012741214,0.66744489,3752.3,3752.1,0.21686778]
[1753012741525,5.0436,3752.7,3752.1,0.21686778]
[1753012741728,0.1328,3752.3,3752.2,11.809328]
[1753012742027,0.1328,3752.6,3752.3,3.0]
[1753012742326,0.1328,3752.6,3752.3,0.02665032]
[1753012742537,0.4346,3753.5,3752.5,3.0]
[1753012742701,0.1328,3753.3,3752.7,3.0]
[1753012742900,0.1328,3753.3,3752.1,0.21686778]
[1753012742901,0.0266489,3753.2,3752.1,0.21686778]
[1753012743105,0.20378,3753.4,3752.3,3.1328]
[1753012743106,0.1328,3753.0,3752.3,3.1328]
[1753012743423,0.1328,3753.0,3752.5,3.0]
[1753012743623,0.4346,3753.5,3752.7,3.0]
[1753012743824,0.1328,3753.4,3752.9,3.0]
[1753012743989,0.1328,3753.4,3752.7,0.1328]
[1753012744193,0.1328,3753.4,3752.9,4.6607]
[1753012744427,6.389,3753.9,3753.1,3.0]
[1753012744594,0.1328,3753.7,3753.1,0.1328]
[1753012744795,0.1328,3753.7,3753.3,3.0]
[1753012745093,0.1328,3753.7,3753.1,0.1328]
[1753012745292,0.1328,3753.7,3753.3,3.0]
[1753012745719,0.1328,3753.7,3753.1,0.1328]
[1753012745720,0.5674,3753.7,3753.1,0.1328]
[1753012745925,0.5674,3753.7,3753.3,3.0]
[1753012746097,0.1328,3753.4,3752.7,0.1328]
[1753012746427,0.1328,3753.4,3752.9,3.0]
[1753012746631,0.1328,3753.4,3753.1,3.0]
[1753012746837,0.1328,3753.4,3753.0,3.0]
[1753012747329,0.4346,3753.3,3752.0,3.0]
[1753012747534,0.1328,3753.0,3752.3,0.1328]
[1753012747831,0.1328,3753.0,3752.5,3.0]
[1753012748139,0.5674,3753.0,3752.3,0.1328]
[1753012748327,0.5674,3753.0,3752.6,3.0]
[1753012748632,0.5674,3753.0,3752.3,0.1328]
[1753012748841,0.1328,3753.0,3752.4,10.24631]
[1753012749040,0.1328,3753.0,3752.5,3.0]
[1753012749204,0.1328,3753.0,3752.5,8.498068]
[1753012749406,0.1328,3753.0,3752.3,0.1328]
[1753012749725,0.1328,3753.0,3752.5,3.0]
[1753012750036,0.1328,3753.0,3752.3,0.1328]
[1753012750330,0.1328,3753.0,3752.5,3.0]
[1753012750536,0.1328,3753.0,3752.3,0.1328]
[1753012750720,0.1328,3753.0,3752.6,3.0]
[1753012751038,0.1328,3753.0,3752.3,0.1328]
[1753012751238,0.1328,3753.0,3752.6,3.0]
[1753012751420,0.1328,3753.0,3752.5,3.0]
[1753012751932,0.1328,3753.0,3752.7,3.0]
[1753012752136,0.1328,3753.0,3752.9,3.0]
[1753012752339,0.1328,3753.0,3752.9,3.940202]
[1753012752633,0.1328,3753.0,3752.3,0.1328]
[1753012752831,0.1328,3753.0,3752.1,0.21686778]
[1753012752832,0.4346,3753.0,3752.5,3.0]
[1753012753038,0.4346,3753.0,3752.1,0.21686778]
[1753012753237,1.5773,3752.8,3752.1,0.21686778]
[1753012753415,0.63579,3752.7,3752.1,0.21686778]
[1753012753757,1.5773,3752.8,3752.3,3.0]
[1753012754059,1.5773,3752.8,3752.5,3.0]
[1753012754200,1.5773,3752.8,3752.4,3.0]
[1753012754403,1.5773,3752.8,3752.6,3.0]
[1753012754640,1.5773,3752.8,3752.1,0.21686778]
[1753012754641,0.4612489,3752.7,3752.1,0.21686778]
[1753012754842,17.33,3754.6,3753.9,1.33221503]
[1753012755042,1.5973,3756.9,3756.4,4.83726]
[1753012755350,0.59433,3756.8,3756.6,3.0]
[1753012755502,0.59433,3756.8,3756.5,5.91394009]
[1753012755503,0.59433,3756.8,3756.7,7.83726]
[1753012755706,0.15973,3756.8,3756.7,4.56467459]
[1753012756010,4.75373,3756.8,3756.7,3.45992418]
[1753012756218,0.59433,3756.8,3756.7,3.45992418]
[1753012756400,5.18833,3756.8,3756.7,3.45992418]
[1753012756915,0.59433,3756.8,3756.7,3.45992418]
[1753012757534,5.18833,3756.8,3756.7,3.45992418]
[1753012758243,5.18633,3756.8,3756.7,3.45992418]
[1753012758838,1.5804,3756.4,3753.5,1.6043]
[1753012759029,0.21304,3756.3,3754.2,5.239751]
[1753012759213,11.4136,3756.2,3754.2,4.193049]
[1753012759422,4.592,3756.1,3754.3,2.06093612]
[1753012759618,6.1724,3756.0,3754.5,3.0]
[1753012759830,4.592,3755.9,3754.7,3.0]
[1753012760138,1.0953,3755.8,3754.9,3.0]
[1753012760344,1.0953,3755.8,3754.3,2.0343]
[1753012760559,0.6607,3755.8,3754.3,0.43]
[1753012760724,0.4346,3755.7,3754.1,0.22102269]
[1753012760929,1.5804,3755.6,3754.1,0.22102269]
[1753012761231,0.70217,3755.5,3754.1,0.22102269]
[1753012761421,0.26757,3755.5,3754.1,0.22102269]
[1753012761743,5.0266,3755.4,3754.1,0.22102269]
[1753012761950,0.4346,3755.3,3754.1,0.22102269]
[1753012762118,7.9664,3755.2,3754.1,0.22102269]
[1753012762318,1.2747,3755.1,3754.1,0.22102269]
[1753012762519,5.8657,3755.1,3754.1,0.22102269]
[1753012762725,4.591,3755.0,3754.1,0.22102269]
[1753012762911,4.591,3754.9,3754.1,0.22102269]
[1753012763235,0.4346,3755.0,3754.1,0.22102269]
[1753012763433,0.92411,3754.9,3754.1,0.22102269]
[1753012763631,4.591,3754.8,3754.1,0.22102269]
[1753012764418,4.59,3754.7,3754.1,0.22102269]
[1753012764634,0.92411,3754.9,3754.1,0.22102269]
[1753012764843,0.1328,3754.2,3754.1,0.22102269]
[1753012765842,4.7228,3754.2,3754.1,0.22102269]
[1753012766433,0.1328,3754.2,3754.1,0.22102269]
[1753012766748,4.7228,3754.2,3754.1,0.22102269]
[1753012766952,5.19508,3754.2,3754.1,0.22102269]
[1753012767314,7.19058,3754.2,3754.1,0.22102269]
[1753012767936,7.19058,3754.2,3753.1,0.02]
[1753012768156,0.4474,3754.1,3753.1,0.02]
[1753012768450,1.6176,3753.9,3753.1,0.02]
[1753012768650,0.2615,3753.8,3753.1,0.02]
[1753012769015,0.4474,3753.7,3753.1,0.02]
[1753012769253,4.589,3753.6,3753.1,0.02]
[1753012769457,0.4474,3753.7,3753.1,0.02]
[1753012769615,4.589,3753.6,3753.1,0.02]
[1753012769815,0.52979,3753.5,3753.1,0.2206054]
[1753012770014,0.4474,3753.4,3753.1,0.02]
[1753012770655,0.4474,3753.3,3753.1,0.02]
[1753012771348,4.589,3753.2,3753.1,0.02]
[1753012772216,5.0364,3753.2,3753.1,0.02]
[1753012772440,5.593019,3753.2,3753.1,0.02]
[1753012772834,5.145619,3753.2,3753.1,0.21867668]
[1753012773123,4.589,3753.2,3753.1,0.02]
[1753012773449,0.7089,3753.8,3753.1,0.02]
[1753012773850,4.588,3753.7,3753.1,0.02]
[1753012774148,4.589,3753.6,3753.1,0.02]
[1753012774452,4.589,3753.5,3753.1,0.02]
[1753012774620,5.0479,3753.4,3753.1,0.02]
[1753012774947,0.4589,3753.4,3753.1,0.02]
[1753012775155,4.588,3753.3,3753.1,0.02]
[1753012775316,0.2615,3753.8,3753.1,0.02]
[1753012775521,4.588,3753.7,3753.1,0.02]
[1753012776148,0.2615,3753.8,3753.1,0.02]
[1753012776329,4.588,3753.6,3753.1,0.02]
[1753012776529,0.48495,3753.5,3753.1,0.02]
[1753012776733,4.588,3753.4,3753.1,0.02]
[1753012778827,0.2615,3753.8,3753.1,0.02]
[1753012779031,4.587,3753.7,3753.1,0.02]
[1753012779564,4.587,3753.6,3753.1,0.21485522]
[1753012779752,0.2615,3753.8,3753.1,0.02]
[1753012780066,0.87135,3753.7,3753.1,0.02]
[1753012780478,6.388,3754.5,3753.2,0.4433]
[1753012780664,0.1328,3753.5,3753.2,0.4433]
[1753012780966,4.586,3753.4,3753.3,0.4433]
[1753012781462,0.1328,3753.5,3753.3,0.4433]
[1753012781668,4.586,3753.4,3753.1,0.22311975]
[1753012781868,4.586,3753.4,3753.3,3.0]
[1753012782163,4.586,3753.4,3753.3,6.597431]
[1753012782365,0.1328,3753.5,3753.3,9.731363]
[1753012782533,4.586,3753.4,3753.1,0.22311975]
[1753012782728,0.1328,3753.5,3753.3,3.0]
[1753012782933,1.6206,3754.6,3753.1,0.22311975]
[1753012783165,0.1328,3753.9,3753.3,3.0]
[1753012783342,0.1328,3753.9,3753.5,4.5613]
[1753012783671,0.1328,3753.9,3753.7,3.0]
[1753012783873,0.1328,3753.9,3753.8,15.698036]
[1753012784170,4.7178,3753.9,3753.8,16.332299]
[1753012784371,0.1328,3753.9,3753.8,16.775599]
[1753012784671,4.7178,3753.9,3753.8,9.707732]
[1753012784841,0.1328,3753.9,3753.8,8.34377]
[1753012785669,0.1328,3753.9,3753.8,3.4433]
[1753012785835,0.1328,3753.9,3753.8,6.877056]
[1753012786037,0.1328,3753.9,3753.8,3.4433]
[1753012786555,0.1328,3753.9,3753.8,3.0]
[1753012786944,4.7158,3753.9,3753.8,3.0]
[1753012787147,0.1328,3753.9,3753.8,3.0]
[1753012787375,4.7158,3753.9,3753.8,3.0]
[1753012787758,0.1328,3753.9,3753.8,3.0]
[1753012787959,0.1328,3753.9,3753.8,3.4433]
[1753012788554,0.1328,3753.9,3753.8,6.056817]
[1753012788871,0.1328,3753.9,3753.8,3.0]
[1753012790637,1.6066,3755.2,3753.8,17.722484]
[1753012790842,0.1328,3754.2,3753.6,0.1328]
[1753012791042,4.581,3754.2,3753.5,1.5613]
[1753012791258,0.1328,3754.1,3753.7,3.0]
[1753012791457,0.1328,3754.1,3753.7,0.4433]
[1753012791852,0.1328,3754.1,3753.5,1.5613]
[1753012792058,4.581,3754.2,3753.7,3.0]
[1753012792392,0.1328,3754.0,3753.5,1.5613]
[1753012792600,0.1328,3754.0,3753.7,3.0]
[1753012792886,4.7128,3754.0,3753.6,0.4433]
[1753012793092,4.58,3753.9,3753.6,0.4433]
[1753012793951,0.1328,3754.0,3753.7,0.4433]
[1753012794192,4.579,3753.9,3753.7,0.4433]
[1753012794492,4.579,3753.9,3753.5,1.5613]
[1753012794641,5.05038,3753.9,3753.6,5.208934]
[1753012794844,0.1328,3753.8,3753.4,3.0]
[1753012795046,0.1328,3753.8,3753.1,1.89071975]
[1753012795246,0.1328,3753.8,3753.2,5.446343]
[1753012795478,0.1328,3753.8,3753.4,3.0]
[1753012795683,0.651318,3753.8,3753.3,3.0]
[1753012795889,0.1328,3753.5,3753.1,1.75791975]
[1753012796382,0.1328,3753.5,3753.3,3.0]
[1753012796587,0.1328,3753.5,3753.2,6.010397]
[1753012796588,0.1328,3753.5,3753.2,0.4433]
[1753012796789,0.1328,3753.5,3753.4,3.0]
[1753012796994,0.1328,3753.5,3753.3,0.4433]
[1753012797487,0.13131829,3753.5,3753.3,0.4433]
[1753012798298,0.13131829,3753.5,3753.1,1.75791975]
[1753012798510,0.13131829,3753.5,3753.1,0.22411975]
[1753012799336,0.13131829,3753.5,3753.3,3.0]
[1753012799529,0.13131829,3753.5,3753.2,3.0]
[1753012799906,0.13131829,3753.5,3753.4,3.0]
[1753012800105,0.13131829,3753.5,3753.2,0.4743]
[1753012800438,2.22095012,3753.5,3753.1,0.22411975]
[1753012800726,0.1328,3753.3,3753.1,0.22411975]
[1753012802732,0.5829,3753.3,3753.1,0.22411975]
[1753012803248,4.574,3753.2,3753.1,0.22411975]
[1753012804348,5.25364318,3753.2,3753.1,0.22411975]
[1753012804847,5.70374318,3753.2,3753.1,0.22411975]
[1753012805462,0.67964318,3753.2,3753.1,0.22411975]
[1753012805622,4.573,3753.2,3753.1,0.22411975]
[1753012806150,0.4501,3753.2,3753.1,0.22411975]
[1753012806355,5.0231,3753.2,3753.1,0.22411975]
[1753012807153,2.13439,3753.1,3752.4,0.001]
[1753012807314,1.6188,3752.9,3752.4,0.001]
[1753012807522,1.6188,3752.5,3752.4,0.001]
[1753012807867,1.6458,3752.4,3752.3,0.001]
[1753012808319,5.31086109,3752.4,3752.3,0.001]
[1753012808519,3.21504572,3752.3,3752.1,0.02]
[1753012808755,0.6828,3752.1,3751.1,0.02]
[1753012809049,1.5631,3751.8,3751.1,0.02]
[1753012809249,7.19506875,3752.0,3751.1,0.02]
[1753012809250,2.1131,3751.6,3751.1,0.02]
[1753012809554,9.34962937,3751.6,3751.1,0.02]
[1753012809751,4.77877148,3751.4,3751.1,0.02]
[1753012809941,7.40184023,3751.4,3751.1,0.02]
[1753012810137,7.85194023,3751.4,3751.1,0.02]
[1753012810315,9.47502427,3751.4,3751.1,0.02]
[1753012810721,1.5631,3751.2,3751.1,0.02]
[1753012810925,8.5011,3751.2,3751.1,0.02]
[1753012811118,13.5222,3751.2,3751.1,0.02]
[1753012811534,16.14526875,3751.2,3751.1,0.02]
[1753012811753,17.92210403,3751.2,3751.1,0.02]
[1753012811954,0.55,3750.9,3750.8,0.001]
[1753012812166,6.6841,3750.9,3750.8,0.001]
[1753012812462,7.1342,3750.9,3750.8,0.001]
[1753012812666,8.9264104,3750.9,3750.8,0.001]
[1753012813020,8.9264104,3750.9,3750.1,0.02]
[1753012813227,0.55,3750.5,3750.1,0.02]
[1753012813560,1.5631,3750.2,3750.1,0.02]
[1753012813763,4.77962445,3750.2,3750.1,0.02]
[1753012813928,6.66534029,3750.2,3750.1,0.02]
[1753012814127,9.01891584,3750.2,3750.1,0.02]
[1753012814327,11.68544029,3750.2,3750.1,0.02]
[1753012814530,9.01891584,3750.2,3750.1,0.02]
[1753012815276,4.88149555,3750.1,3750.0,0.001]
[1753012815574,7.41597613,3750.1,3750.0,0.001]
[1753012816079,11.98697613,3750.1,3750.0,0.001]
[1753012816259,2.2149,3749.9,3749.7,0.001]
[1753012816433,9.45270889,3749.8,3749.7,0.001]
[1753012816627,9.90280889,3749.8,3749.7,0.001]
[1753012816861,11.3681945,3749.8,3749.7,0.001]
[1753012817558,4.13038561,3749.8,3749.7,0.001]
[1753012817759,8.15038561,3749.8,3749.7,0.001]
[1753012817963,6.685,3749.8,3749.7,0.001]
[1753012818166,7.234,3749.8,3749.7,0.001]
[1753012818946,2.665,3749.8,3749.7,0.001]
[1753012819135,2.115,3749.8,3749.7,0.001]
[1753012819334,6.393,3750.1,3749.7,0.001]
[1753012819554,4.57,3750.0,3749.7,0.001]
[1753012819956,4.569,3749.9,3749.7,0.001]
[1753012820157,1.6152,3749.8,3749.7,0.001]
[1753012820464,2.6153,3749.8,3749.7,0.001]
[1753012821677,4.568,3749.8,3749.7,0.001]
[1753012821872,5.744182,3749.8,3749.7,0.001]
[1753012822059,10.47629089,3749.8,3749.7,0.001]
[1753012822364,3.78081576,3749.8,3749.7,0.001]
[1753012822553,7.79881576,3749.8,3749.7,0.001]
[1753012822730,8.34881576,3749.8,3749.7,0.001]
[1753012823147,11.01562465,3749.8,3749.7,0.001]
[1753012823548,8.34881576,3749.8,3749.7,0.001]
[1753012823780,11.01562465,3749.8,3749.7,0.001]
[1753012823998,6.393,3750.1,3749.7,0.001]
[1753012824295,4.567,3750.0,3749.7,0.001]
[1753012824976,6.393,3750.1,3749.7,0.001]
[1753012825353,4.567,3750.0,3749.7,0.4753]
[1753012825766,4.567,3750.0,3749.7,0.001]
[1753012826095,4.567,3749.9,3749.7,0.4753]
[1753012826298,4.567,3749.9,3749.7,0.001]
[1753012826504,5.663,3749.9,3749.7,0.001]
[1753012826852,1.096,3749.9,3749.7,0.001]
[1753012827361,4.566,3749.8,3749.7,0.001]
[1753012828675,5.0167,3749.8,3749.7,0.001]
[1753012828874,6.6319,3749.8,3749.7,0.001]
[1753012829077,7.1819,3749.8,3749.7,0.001]
[1753012830346,2.6159,3749.8,3749.7,0.001]
[1753012830550,7.1799,3749.8,3749.7,0.001]
[1753012830751,0.55,3749.5,3747.2,1.5246]
[1753012831052,6.46559,3749.8,3747.7,0.4362]
[1753012831053,0.1328,3748.9,3747.7,0.4362]
[1753012831252,4.564,3748.8,3747.7,0.4362]
[1753012831493,1.6152,3748.5,3747.3,0.4362]
[1753012831702,1.6152,3748.5,3747.6,0.204032]
[1753012831851,4.564,3748.4,3748.2,0.4362]
[1753012832190,4.68896875,3749.7,3748.3,0.4362]
[1753012832487,0.1328,3748.3,3748.1,0.02]
[1753012832688,4.563,3748.2,3748.1,0.02]
[1753012832889,1.6152,3748.8,3748.1,0.02]
[1753012833191,4.563,3748.7,3748.1,0.4562]
[1753012833400,2.0659,3749.2,3748.1,0.4562]
[1753012833600,4.563,3749.1,3748.2,0.001]
[1753012833799,1.6152,3749.2,3748.2,0.001]
[1753012834001,0.1328,3748.4,3748.3,2.0757]
[1753012834296,0.1328,3748.4,3748.2,0.001]
[1753012834297,4.6958,3748.4,3748.2,0.001]
[1753012834684,0.1328,3748.4,3748.2,0.001]
[1753012834898,4.562,3748.3,3748.2,0.001]
[1753012835296,0.1328,3748.4,3748.2,0.001]
[1753012835482,0.1328,3748.4,3748.2,0.4372]
[1753012835657,4.562,3748.3,3748.2,0.4372]
[1753012835861,0.1328,3748.4,3748.2,0.4372]
[1753012836104,4.562,3748.3,3748.2,1.6405]
[1753012836298,4.561,3748.3,3748.2,1.6405]
[1753012836802,4.561,3748.3,3748.2,2.0767]
[1753012836803,4.562,3748.3,3748.2,2.0767]
[1753012837364,0.46948,3748.3,3747.4,2.0757]
[1753012837598,6.396,3749.3,3747.6,1.6395]
[1753012837813,1.5613,3750.3,3748.1,1.6395]
[1753012838013,4.561,3749.7,3748.4,1.6395]
[1753012838303,4.561,3749.7,3748.5,0.4362]
[1753012839087,0.4507,3750.0,3748.5,0.4362]
[1753012839295,4.56,3749.9,3748.5,0.4362]
[1753012839766,0.55,3749.6,3748.4,1.6395]
[1753012840286,0.4507,3749.5,3748.4,1.6395]
[1753012840499,0.4507,3749.5,3748.2,0.4362]
[1753012840701,0.55,3749.4,3748.0,1.6348]
[1753012841000,0.55,3749.2,3747.7,0.4362]
[1753012841301,9.68444855,3749.3,3747.6,1.6348]
[1753012841302,0.55,3749.0,3747.6,1.6348]
[1753012841498,0.55,3749.2,3747.6,1.6348]
[1753012841708,0.4507,3748.9,3747.6,1.6348]
[1753012842371,2.50160077,3748.8,3747.4,0.20047885]
[1753012842572,0.55,3748.6,3747.3,0.4362]
[1753012842786,4.559,3748.5,3747.4,0.4362]
[1753012843164,4.559,3748.5,3747.2,1.6348]
[1753012843165,1.0007,3748.4,3747.2,1.6348]
[1753012843363,1.95160077,3748.8,3747.3,18.492176]
[1753012843562,4.559,3748.7,3747.4,0.4362]
[1753012843794,4.558,3748.6,3747.4,0.4362]
[1753012844002,0.55,3748.5,3747.4,0.4362]
[1753012844410,0.55,3748.5,3747.2,1.83437948]
[1753012844969,0.55,3748.3,3747.2,1.83437948]
[1753012845169,2.0839,3748.1,3747.1,0.02]
[1753012845367,10.954,3748.0,3747.1,0.02]
[1753012846493,4.558,3747.9,3747.1,0.22290206]
[1753012846697,4.558,3747.9,3747.1,0.02]
[1753012847008,4.557,3747.8,3747.1,0.02]
[1753012847213,5.80569,3747.8,3747.1,0.02]
[1753012847708,4.557,3747.7,3747.1,0.02]
[1753012848929,1.24869,3747.8,3747.1,0.02]
[1753012849243,4.557,3747.7,3747.2,0.4362]
[1753012849441,4.557,3747.7,3747.1,0.02]
[1753012850106,4.556,3747.6,3747.1,0.65644334]
[1753012850413,6.396,3748.0,3747.1,0.65644334]
[1753012850613,5.40007,3747.9,3747.1,0.22024334]
[1753012852017,10.952,3747.8,3747.1,0.22024334]
[1753012852513,4.555,3747.7,3747.1,0.22024334]
[1753012852713,0.1328,3747.3,3747.2,0.4362]
[1753012852943,4.6878,3747.3,3747.2,0.4362]
[1753012854056,0.1328,3747.3,3747.2,2.007]
[1753012854346,4.554,3747.3,3747.2,2.22982433]
[1753012854556,0.1328,3747.5,3747.2,2.22982433]
[1753012854742,4.554,3747.3,3747.2,1.79362433]
[1753012855047,4.554,3747.3,3747.2,10.54262433]
[1753012855246,0.1328,3747.5,3747.3,2.401919]
[1753012855446,4.554,3747.4,3747.3,0.4362]
[1753012856247,4.554,3747.4,3747.2,1.5708]
[1753012856930,0.1328,3747.2,3747.1,0.22024334]
[1753012857545,4.6858,3747.2,3747.1,0.22024334]
[1753012858058,0.1328,3747.2,3747.1,0.22024334]
[1753012858281,4.6848,3747.2,3747.1,0.22024334]
[1753012859067,5.15328,3747.2,3747.1,0.02]
[1753012859671,0.60128,3747.2,3747.1,0.02]